bitfinex/quotes_ETHUSD_20260131
["timestamp","ask_amount","ask_price","bid_price","bid_amount"]
[1769868435011,13.36229108,2635.5,2634.6,0.0011]
[1769868435176,13.36229108,2635.5,2635.1,0.0011]
[1769868435380,1.33622911,2635.4,2634.6,0.7961]
[1769868435975,14.69852019,2635.4,2634.6,0.7961]
[1769868436181,0.51022606,2635.9,2634.6,0.7961]
[1769868436375,13.36229108,2635.6,2634.6,0.7961]
[1769868437415,14.31084536,2635.6,2634.6,0.7961]
[1769868437997,13.36229108,2635.6,2634.6,0.7961]
[1769868438198,1.43108315,2635.5,2634.6,0.7961]
[1769868438508,14.79337423,2635.5,2634.6,0.7961]
[1769868439103,15.74196144,2635.5,2634.6,0.7961]
[1769868439490,14.79337423,2635.5,2634.6,0.7961]
[1769868440308,15.74196196,2635.5,2634.6,0.7961]
[1769868440504,13.46469108,2635.3,2633.8,12.09237994]
[1769868440675,16.1326612,2635.4,2633.8,12.09237994]
[1769868440676,13.46469108,2635.1,2633.8,0.7961]
[1769868440872,1.5741962,2635.4,2634.0,12.09237994]
[1769868440873,0.1024,2635.3,2634.0,12.09237994]
[1769868441078,0.1024,2635.3,2634.1,0.795]
[1769868441509,13.46469108,2635.3,2634.2,0.795]
[1769868441716,1.44133346,2635.2,2634.2,0.795]
[1769868441915,14.80362454,2635.2,2634.1,0.795]
[1769868443093,15.75232514,2635.2,2634.0,0.0011]
[1769868443294,15.75232514,2635.2,2634.1,0.795]
[1769868443493,1.58547251,2635.1,2634.1,12.88627994]
[1769868443808,0.1024,2635.4,2634.1,12.88627994]
[1769868444188,13.36229108,2635.8,2634.1,12.88627994]
[1769868444414,0.1024,2635.7,2634.1,12.88627994]
[1769868444589,0.1024,2635.7,2634.3,12.09127994]
[1769868446011,0.74926653,2636.0,2634.2,12.09127994]
[1769868446612,13.36229108,2636.1,2634.2,13.04032403]
[1769868446815,0.94833129,2636.3,2634.4,12.09127994]
[1769868446988,1.81037124,2636.2,2634.6,12.09127994]
[1769868447190,0.001,2635.0,2634.6,12.09127994]
[1769868447390,1.81037124,2636.2,2634.6,12.09127994]
[1769868448108,0.1024,2636.1,2634.6,12.09127994]
[1769868448298,14.41308462,2636.1,2634.6,12.09127994]
[1769868448615,13.46469108,2635.9,2634.6,12.09127994]
[1769868449007,0.1024,2635.9,2634.6,12.09127994]
[1769868449510,0.1024,2635.9,2634.3,12.09237994]
[1769868449511,13.46469108,2635.9,2634.3,12.09237994]
[1769868449711,0.1024,2635.4,2634.3,0.0011]
[1769868449896,13.46469108,2635.2,2634.3,0.0011]
[1769868450092,14.31105768,2635.0,2634.0,0.0011]
[1769868450721,13.36229108,2634.9,2634.0,0.0011]
[1769868452718,14.31109691,2634.9,2634.0,0.0011]
[1769868453844,13.46469108,2634.8,2634.0,0.0011]
[1769868454054,13.36229108,2634.6,2633.4,0.0011]
[1769868454340,14.31123774,2634.5,2633.4,0.0011]
[1769868457600,11.50563842,2634.3,2633.4,0.0011]
[1769868458532,11.50563842,2634.1,2633.1,0.0011]
[1769868458700,11.50563842,2633.9,2633.1,0.0011]
[1769868459096,11.50563842,2633.9,2633.6,0.0011]
[1769868459298,11.50563842,2633.9,2633.1,0.0011]
[1769868459701,11.50563842,2633.9,2633.4,0.0011]
[1769868459899,1.24547652,2633.8,2633.4,0.0011]
[1769868461106,13.59955446,2633.8,2633.1,0.0011]
[1769868461417,12.65034985,2633.8,2633.1,0.0011]
[1769868463037,0.58711333,2634.4,2633.1,11.35367187]
[1769868463541,1.53610288,2634.4,2633.1,11.35367187]
[1769868464134,0.58711333,2634.4,2633.1,11.35367187]
[1769868464332,0.1024,2634.6,2633.1,11.35367187]
[1769868464643,1.05131196,2634.6,2633.1,11.35367187]
[1769868464842,1.05131196,2634.6,2633.1,0.0011]
[1769868464843,11.50727333,2634.4,2633.1,0.0011]
[1769868465014,11.50727333,2634.2,2633.1,0.0011]
[1769868465214,0.1024,2634.0,2633.1,0.0011]
[1769868467038,1.05141871,2634.3,2633.1,0.0011]
[1769868467242,1.05141871,2634.3,2633.1,11.35367187]
[1769868469829,0.1024,2634.3,2633.1,11.35367187]
[1769868470325,1.05141997,2634.3,2633.1,11.35367187]
[1769868470521,0.1024,2634.1,2633.1,11.35367187]
[1769868470946,1.24562933,2634.2,2633.1,11.35367187]
[1769868471145,0.1024,2634.6,2633.1,11.35367187]
[1769868471457,1.44134969,2634.7,2633.1,11.35367187]
[1769868471645,0.1024,2634.6,2633.3,0.0011]
[1769868471834,0.1024,2634.6,2633.4,11.35257187]
[1769868472039,0.001,2634.1,2633.4,11.35257187]
[1769868473262,0.001,2635.0,2633.4,11.35257187]
[1769868474460,0.1034,2635.0,2633.4,11.35257187]
[1769868474662,11.40487333,2634.7,2633.5,1.13536719]
[1769868474967,11.40487333,2634.7,2633.5,0.796]
[1769868475133,11.40487333,2634.7,2633.5,12.14857187]
[1769868475332,0.1024,2634.9,2633.7,11.35257187]
[1769868475762,1.05121572,2634.9,2633.7,11.35257187]
[1769868475963,3.03793,2634.8,2633.6,0.796]
[1769868476129,0.40891457,2634.7,2633.6,0.796]
[1769868476333,0.40891457,2634.7,2633.6,12.14857187]
[1769868477049,0.40891457,2634.7,2633.6,11.35257187]
[1769868477250,0.40891457,2634.7,2633.7,0.796]
[1769868478269,11.50727333,2634.6,2633.4,0.796]
[1769868478436,12.78353633,2634.6,2633.4,0.796]
[1769868479674,11.40487333,2634.4,2633.4,0.796]
[1769868480372,11.40487333,2634.4,2633.3,0.0011]
[1769868480573,11.40487333,2634.4,2633.3,0.7971]
[1769868480775,0.1024,2634.2,2633.3,0.0011]
[1769868481073,11.50727333,2634.2,2633.3,0.0011]
[1769868481783,0.1024,2634.0,2633.3,0.0011]
[1769868482788,11.50727333,2634.0,2633.1,0.0011]
[1769868483068,11.50727333,2634.0,2633.0,0.0011]
[1769868483069,12.75290974,2634.0,2633.0,0.0011]
[1769868483238,17.644186,2633.9,2632.3,11.35367187]
[1769868483441,13.40649557,2633.8,2632.3,0.7971]
[1769868483646,11.50727333,2633.4,2632.3,0.7971]
[1769868485687,12.45662319,2633.4,2632.3,0.7971]
[1769868486474,11.50727333,2633.2,2632.3,0.0011]
[1769868487506,11.50727333,2633.2,2632.0,11.35367187]
[1769868487507,11.93959956,2633.0,2632.0,0.0011]
[1769868487789,7.43730776,2632.9,2632.0,0.0011]
[1769868487969,12.99150471,2633.0,2632.0,0.0011]
[1769868488167,0.1024,2632.8,2632.0,0.0011]
[1769868488377,17.41455056,2632.7,2631.4,11.88153908]
[1769868488559,11.93959956,2632.7,2631.4,11.88153908]
[1769868488754,1.19395996,2632.6,2631.4,11.88153908]
[1769868488960,13.13355952,2632.6,2631.4,11.88153908]
[1769868490658,12.04199956,2632.5,2631.3,0.0011]
[1769868490867,12.04199956,2632.3,2630.8,0.0011]
[1769868491084,12.04199956,2632.1,2630.8,0.0011]
[1769868491259,0.1024,2632.1,2630.8,11.08663908]
[1769868491660,12.04199956,2631.9,2630.8,0.0011]
[1769868491870,12.04199956,2631.6,2630.8,0.0011]
[1769868492262,12.88962806,2631.5,2630.8,0.0011]
[1769868492459,14.85913856,2631.4,2630.4,0.0011]
[1769868492658,12.04199956,2631.4,2630.4,0.0011]
[1769868492864,1.29920281,2631.3,2630.4,0.0011]
[1769868493761,13.23880237,2631.3,2630.4,0.0011]
[1769868493967,11.93959956,2631.1,2630.4,0.0011]
[1769868494376,12.88977785,2631.1,2630.4,0.0011]
[1769868495879,12.88977785,2631.1,2630.0,0.7971]
[1769868495880,0.1024,2631.0,2629.8,11.03773908]
[1769868496198,1.77143372,2631.0,2629.8,11.03773908]
[1769868496396,0.1024,2630.8,2629.8,11.03773908]
[1769868497484,0.1024,2630.8,2629.7,0.0011]
[1769868497485,10.61062744,2630.8,2629.7,0.0011]
[1769868497790,0.1024,2630.6,2629.7,0.0011]
[1769868497992,0.1024,2630.6,2629.7,11.08663908]
[1769868498168,0.1024,2630.6,2629.7,0.0011]
[1769868499369,0.1024,2630.7,2629.8,11.08553908]
[1769868499568,0.1024,2630.7,2629.7,0.0011]
[1769868499769,0.1024,2630.0,2629.3,0.0011]
[1769868500015,13.24619952,2630.0,2629.3,0.0011]
[1769868500294,14.19679535,2630.0,2629.3,0.0011]
[1769868500596,13.24619952,2630.0,2629.3,0.0011]
[1769868501469,14.19677668,2630.0,2629.3,0.0011]
[1769868501811,11.93959956,2629.8,2628.5,0.0011]
[1769868502106,12.04199956,2629.2,2628.3,0.0011]
[1769868502317,12.04199956,2629.2,2627.3,11.08553908]
[1769868502318,11.93959956,2629.0,2627.3,11.08553908]
[1769868502473,0.95089574,2629.1,2627.3,12.19409299]
[1769868502474,12.04199956,2628.8,2627.3,12.19409299]
[1769868502674,0.1024,2628.8,2627.3,12.19409299]
[1769868502892,0.1024,2629.3,2627.3,12.19409299]
[1769868503097,16.22914556,2629.2,2627.3,12.19409299]
[1769868503376,12.04199956,2629.0,2627.5,11.08553908]
[1769868503595,12.04199956,2628.8,2627.1,11.08553908]
[1769868503783,12.04199956,2628.8,2627.1,11.88253908]
[1769868504186,0.1024,2628.8,2627.1,11.88253908]
[1769868504384,0.1024,2628.8,2627.3,11.08553908]
[1769868504613,0.1024,2628.8,2627.4,0.797]
[1769868504614,12.04199956,2628.8,2627.4,0.797]
[1769868504794,1.14979739,2628.9,2627.4,11.88253908]
[1769868504795,0.19879908,2628.9,2627.4,11.88253908]
[1769868504979,12.04199956,2629.1,2627.5,10.76153901]
[1769868505170,12.04199956,2628.9,2627.4,0.797]
[1769868505382,11.93959956,2628.7,2626.3,11.08553908]
[1769868505678,11.93959956,2628.7,2625.5,1.90896205]
[1769868505679,12.04199956,2628.5,2626.4,12.99109299]
[1769868505878,1.20419996,2628.8,2626.4,11.88253908]
[1769868505879,0.1024,2628.3,2626.4,11.88253908]
[1769868506179,0.1024,2628.1,2626.6,11.08553908]
[1769868506393,0.1024,2627.9,2626.6,11.08553908]
[1769868506596,1.20419996,2628.8,2626.6,11.08553908]
[1769868506785,0.1024,2628.6,2626.6,12.037338]
[1769868506986,0.1024,2628.4,2626.7,11.08553908]
[1769868508706,0.1024,2628.5,2626.7,11.08553908]
[1769868508893,0.1024,2628.5,2626.5,3.80730093]
[1769868508894,0.1024,2628.5,2626.9,11.08553908]
[1769868510411,0.001,2628.6,2626.9,11.08553908]
[1769868510811,0.001,2628.6,2627.1,11.08553908]
[1769868511004,0.001,2628.6,2627.3,11.08553908]
[1769868512898,0.001,2628.6,2627.3,12.03708245]
[1769868513333,0.19878577,2629.2,2627.4,11.08553908]
[1769868513654,12.99276054,2629.5,2627.6,11.08553908]
[1769868513810,0.1024,2629.3,2627.6,11.08553908]
[1769868514018,12.04199956,2629.1,2627.6,11.08553908]
[1769868514221,12.04199956,2628.9,2627.6,11.88353908]
[1769868514630,20.03325656,2628.8,2627.6,11.88353908]
[1769868514852,11.93959956,2628.8,2627.6,11.88353908]
[1769868515174,1.40170032,2628.7,2627.6,11.88353908]
[1769868515761,0.1024,2629.3,2627.6,11.88353908]
[1769868516239,12.04199956,2629.3,2627.6,11.88353908]
[1769868516410,0.1024,2629.1,2627.6,11.08553908]
[1769868516761,11.93959956,2628.9,2627.7,11.88353908]
[1769868516907,11.93959956,2628.9,2627.7,0.798]
[1769868517266,1.20419996,2628.8,2627.7,0.798]
[1769868517746,1.20419996,2628.8,2626.8,0.0011]
[1769868517747,10.86530689,2628.5,2626.8,11.40549801]
[1769868517943,10.86530689,2628.5,2627.0,12.20239801]
[1769868518750,2.024912,2628.4,2627.0,12.20239801]
[1769868518964,10.86530689,2628.5,2627.0,12.20239801]
[1769868519246,1.08653069,2628.4,2627.2,11.40439801]
[1769868519543,0.1024,2628.7,2627.3,0.798]
[1769868519712,0.1024,2628.5,2627.3,12.20239801]
[1769868520933,0.1024,2628.7,2627.3,12.20239801]
[1769868521136,0.1024,2628.5,2627.3,12.20239801]
[1769868521443,0.3976305,2628.5,2627.3,12.20239801]
[1769868521611,0.1024,2628.5,2627.3,12.20239801]
[1769868522230,0.1024,2628.8,2627.3,12.20239801]
[1769868522537,0.1024,2628.6,2627.3,12.20239801]
[1769868522752,11.79353697,2628.8,2627.3,12.20239801]
[1769868522957,23.7433415,2628.7,2627.3,12.20239801]
[1769868523147,12.84699883,2628.7,2627.3,12.20239801]
[1769868523737,11.89593697,2628.5,2627.3,0.798]
[1769868523954,10.109341,2628.4,2627.3,0.798]
[1769868524155,2.1902878,2628.3,2627.3,0.798]
[1769868524471,13.98382477,2628.3,2627.0,0.0011]
[1769868524624,11.89593697,2628.2,2627.0,0.0011]
[1769868524956,11.89593697,2627.9,2627.0,0.0011]
[1769868525133,12.84729605,2627.9,2627.0,0.0011]
[1769868525344,0.1024,2627.6,2626.4,0.798]
[1769868525544,0.1024,2627.6,2626.4,11.63332467]
[1769868526072,0.1024,2627.6,2625.7,0.0011]
[1769868526073,0.1024,2627.6,2626.2,0.798]
[1769868526260,13.21400363,2627.6,2626.1,11.63332467]
[1769868526457,13.21400363,2627.6,2625.7,11.63442467]
[1769868526645,0.1024,2627.1,2625.7,11.63442467]
[1769868526847,11.89593697,2627.1,2625.7,0.0011]
[1769868527064,12.84764094,2626.9,2625.7,0.0011]
[1769868528059,0.1024,2626.9,2625.7,11.63442467]
[1769868528258,12.8475204,2627.2,2625.7,11.63442467]
[1769868528569,11.89593697,2626.9,2625.7,0.0011]
[1769868528768,0.1024,2626.7,2625.7,0.0011]
[1769868528998,11.89593697,2626.7,2625.7,0.0011]
[1769868529174,0.1024,2626.5,2625.7,0.0011]
[1769868530755,11.89593697,2626.5,2625.7,0.0011]
[1769868530956,11.89593697,2626.5,2625.5,0.0011]
[1769868531258,0.1024,2626.3,2625.5,0.0011]
[1769868531646,1.28477378,2626.4,2625.5,0.0011]
[1769868531848,0.1024,2626.7,2625.5,0.0011]
[1769868532071,0.1024,2626.4,2625.5,0.0011]
[1769868532768,0.1024,2626.4,2625.9,0.0011]
[1769868533381,0.1024,2626.4,2625.6,0.0011]
[1769868533880,3.80707478,2626.7,2625.6,0.0011]
[1769868533881,0.1024,2626.7,2625.6,0.0011]
[1769868534086,13.91405697,2626.6,2625.6,0.0011]
[1769868534288,11.79353697,2626.6,2625.6,0.0011]
[1769868535662,1.77809456,2626.7,2625.6,11.63442467]
[1769868535858,1.05412643,2626.9,2625.6,11.63442467]
[1769868537294,0.1024,2627.2,2625.6,11.63442467]
[1769868537490,0.1024,2627.0,2625.6,11.63442467]
[1769868537697,11.89593697,2627.0,2625.6,11.63442467]
[1769868538072,11.89593697,2626.8,2625.3,12.43132467]
[1769868538290,0.1024,2626.7,2625.3,12.43132467]
[1769868538492,0.1024,2626.5,2625.3,12.43132467]
[1769868538697,0.1024,2626.7,2625.3,12.43132467]
[1769868538993,1.42046926,2626.7,2625.3,12.43132467]
[1769868539778,0.1024,2626.6,2625.3,12.43132467]
[1769868540289,0.1024,2626.6,2625.3,11.63332467]
[1769868540497,0.1024,2626.6,2625.3,12.43132467]
[1769868541173,0.1024,2626.7,2625.3,12.43132467]
[1769868541600,1.0541898,2626.7,2625.3,12.43132467]
[1769868541799,0.1024,2626.5,2625.3,12.43132467]
[1769868542186,0.48611175,2626.6,2625.3,12.43132467]
[1769868542385,0.1024,2627.1,2625.3,12.43132467]
[1769868542972,0.1024,2626.9,2625.3,12.43132467]
[1769868543180,0.1024,2627.0,2625.3,12.43132467]
[1769868543900,12.8475974,2627.0,2625.5,11.63332467]
[1769868544096,0.1024,2626.8,2625.5,11.63332467]
[1769868544297,0.1024,2626.8,2625.6,0.798]
[1769868544298,11.89593697,2626.8,2625.6,0.798]
[1769868545400,11.89593697,2626.8,2625.5,12.43132467]
[1769868545603,11.89593697,2626.8,2625.7,0.0011]
[1769868545798,0.1034,2626.6,2625.7,0.0011]
[1769868545998,11.89593697,2626.5,2625.5,0.0011]
[1769868546198,0.1024,2626.5,2625.5,11.63442467]
[1769868546404,0.32750252,2626.5,2625.5,11.63442467]
[1769868546605,0.1024,2626.5,2625.5,11.63442467]
[1769868546989,0.001,2626.6,2625.5,11.63442467]
[1769868547819,0.9528008,2626.6,2625.5,0.0011]
[1769868549107,0.1024,2626.3,2625.1,0.7491]
[1769868549404,11.15773643,2626.1,2624.6,11.14160772]
[1769868549590,26.315605,2626.2,2624.6,11.14160772]
[1769868549591,0.1024,2625.8,2624.6,11.14160772]
[1769868549994,12.559557,2625.7,2624.6,0.0011]
[1769868550215,0.1024,2625.5,2624.6,0.0011]
[1769868550504,0.1024,2625.3,2624.4,0.0011]
[1769868550705,0.1024,2625.1,2624.4,0.0011]
[1769868550905,0.1024,2625.1,2623.5,11.14050772]
[1769868550906,0.1024,2624.9,2623.5,11.14050772]
[1769868551084,11.70982995,2624.9,2623.5,11.14050772]
[1769868551479,4.924101,2624.8,2623.5,11.14050772]
[1769868551706,11.70982995,2624.7,2623.2,0.798]
[1769868551908,4.924101,2624.8,2622.7,11.15879992]
[1769868551909,11.70982995,2624.5,2622.7,11.15879992]
[1769868552079,11.70982995,2624.2,2622.7,0.0182922]
[1769868552277,0.1024,2624.0,2622.7,0.0182922]
[1769868552685,0.1024,2623.8,2622.7,0.0182922]
[1769868552891,0.1024,2623.6,2622.7,1e-08]
[1769868553804,11.70982995,2623.4,2621.3,11.93950772]
[1769868554112,0.1024,2623.2,2621.3,11.93950772]
[1769868554309,0.1024,2623.0,2621.5,11.14050772]
[1769868554513,1.79587099,2623.2,2621.5,11.14050772]
[1769868554677,0.1024,2624.1,2621.5,11.14050772]
[1769868555034,0.1024,2624.1,2621.7,11.14050772]
[1769868555179,11.60742995,2625.0,2622.3,11.14050772]
[1769868555384,11.60742995,2624.5,2622.5,11.14050772]
[1769868555581,0.1024,2624.3,2622.5,11.14050772]
[1769868555822,0.1024,2624.1,2622.5,11.14050772]
[1769868556113,0.1024,2623.9,2622.5,11.14050772]
[1769868556912,0.1024,2624.5,2622.5,11.14050772]
[1769868557215,14.18107295,2624.5,2622.5,11.14050772]
[1769868557413,0.1024,2624.3,2622.5,12.25455849]
[1769868557718,3.262694,2624.2,2622.5,12.25565849]
[1769868557936,0.1024,2624.3,2622.5,12.25565849]
[1769868558212,6.541603,2624.2,2622.5,12.25565849]
[1769868559228,3.459735,2624.2,2622.5,12.25565849]
[1769868559517,0.1024,2624.0,2622.6,11.58394655]
[1769868560708,1.05506032,2624.3,2622.6,11.58394655]
[1769868560909,1.05503665,2624.3,2622.6,11.58394655]
[1769868561117,2.666631,2624.2,2622.6,11.58394655]
[1769868561288,1.05503665,2624.3,2622.6,11.58394655]
[1769868561615,1.05500964,2624.4,2622.8,11.14050772]
[1769868561808,8.62034864,2624.4,2622.8,11.14050772]
[1769868562012,0.95260964,2624.4,2622.8,11.14050772]
[1769868562209,0.1024,2624.3,2622.8,11.14050772]
[1769868562510,0.30041041,2624.5,2623.0,11.14050772]
[1769868564103,12.967977,2624.4,2622.9,11.58394655]
[1769868564310,0.1024,2624.3,2622.9,11.14050772]
[1769868565810,0.1024,2624.4,2622.9,11.14050772]
[1769868566307,1.05501143,2624.4,2622.9,11.09050772]
[1769868566523,1.05501143,2624.4,2623.0,0.799]
[1769868566901,0.1024,2624.4,2623.0,11.93950772]
[1769868567801,1.05499891,2624.4,2623.0,11.93950772]
[1769868568010,1.05499891,2624.4,2623.0,11.14050772]
[1769868568197,0.1024,2624.4,2623.1,0.799]
[1769868568604,1.05500901,2624.4,2623.1,0.799]
[1769868568894,12.66243896,2624.4,2622.8,0.799]
[1769868569095,0.1024,2624.2,2622.8,11.93950772]
[1769868569995,0.1024,2624.2,2622.8,11.14050772]
[1769868570196,0.1024,2624.0,2622.8,11.14050772]
[1769868570493,11.70982995,2624.0,2622.5,0.0011]
[1769868570823,11.70982995,2623.8,2622.5,0.0011]
[1769868571027,0.1024,2623.6,2622.5,0.0011]
[1769868571198,0.1024,2623.9,2622.5,11.14160772]
[1769868571394,2.971472,2623.9,2622.5,11.14160772]
[1769868571608,0.1024,2623.9,2622.5,11.14160772]
[1769868572411,1.05518787,2623.9,2622.6,0.799]
[1769868572729,1.05518787,2623.9,2622.5,11.94060772]
[1769868572925,0.48661736,2623.8,2622.5,11.94060772]
[1769868573127,0.1024,2623.9,2622.5,11.94060772]
[1769868573328,0.1024,2624.1,2622.5,11.94060772]
[1769868573918,1.05510865,2624.1,2622.5,11.94060772]
[1769868574126,0.1024,2623.9,2622.5,11.14160772]
[1769868574435,2.177758,2623.8,2622.6,11.93950772]
[1769868574633,0.1024,2623.8,2622.6,11.93950772]
[1769868574838,0.1024,2624.2,2622.6,11.93950772]
[1769868576619,1.05510447,2624.2,2622.6,11.93950772]
[1769868577332,0.1024,2624.2,2622.6,11.93950772]
[1769868577536,0.001,2624.3,2622.6,12.89275644]
[1769868578413,0.001,2624.3,2622.6,11.93950772]
[1769868578611,0.001,2624.3,2622.6,12.89275947]
[1769868578841,0.001,2624.3,2622.6,11.93950772]
[1769868579035,0.001,2624.3,2622.7,10.75623898]
[1769868579232,29.23730982,2624.2,2622.7,10.75623898]
[1769868579429,9.830789,2624.1,2622.8,0.799]
[1769868579644,6.923089,2624.0,2622.8,0.799]
[1769868579846,8.138489,2624.1,2622.8,0.799]
[1769868580046,9.17234818,2624.1,2622.8,0.799]
[1769868580210,6.945089,2624.0,2622.8,0.799]
[1769868580415,6.945089,2624.0,2622.6,0.799]
[1769868580416,17.28268082,2624.0,2622.6,0.799]
[1769868580614,14.20157,2623.9,2622.6,0.799]
[1769868580814,1.831654,2623.9,2622.6,11.38905557]
[1769868581014,0.95276476,2624.0,2622.6,11.38905557]
[1769868581554,0.95276476,2624.0,2622.5,0.8001]
[1769868581555,15.197263,2623.9,2622.5,0.8001]
[1769868581709,0.1024,2623.9,2622.8,0.0011]
[1769868581911,0.95276476,2624.0,2622.8,0.0011]
[1769868582110,0.1024,2623.9,2622.8,0.0011]
[1769868582319,0.58910212,2623.9,2622.8,0.0011]
[1769868582515,10.67334523,2623.7,2622.8,0.0011]
[1769868582810,0.9529618,2623.4,2622.8,0.0011]
[1769868583036,0.1024,2623.5,2622.8,0.0011]
[1769868583037,1.05533788,2623.5,2622.8,0.0011]
[1769868583240,0.48670263,2623.4,2622.8,0.0011]
[1769868583441,0.95293788,2623.5,2622.8,0.0011]
[1769868583614,1.05531549,2623.6,2622.8,0.0011]
[1769868584234,0.1024,2623.4,2622.8,0.0011]
[1769868584447,10.67334523,2623.4,2621.6,10.59005557]
[1769868584657,0.1024,2623.5,2621.9,11.38905557]
[1769868584878,0.1024,2623.5,2622.1,10.59005557]
[1769868585165,0.1024,2623.8,2622.1,10.59005557]
[1769868585741,0.95373176,2624.1,2622.1,10.59005557]
[1769868586121,0.1024,2624.0,2622.1,10.59005557]
[1769868586316,1.5437789,2624.0,2622.3,10.59005557]
[1769868586616,1.5437789,2624.0,2622.5,10.59005557]
[1769868587877,2.49652343,2624.0,2622.5,10.59005557]
[1769868588080,2.49652343,2624.0,2622.6,0.799]
[1769868588379,1.5437789,2624.0,2622.6,11.38905557]
[1769868588564,0.24975234,2623.9,2622.6,12.52796113]
[1769868589270,0.24975234,2623.9,2622.7,11.38905557]
[1769868589641,18.07853123,2623.8,2622.4,10.59005557]
[1769868589840,1.20255123,2623.9,2621.5,0.0011]
[1769868589841,10.57094523,2623.6,2622.2,0.799]
[1769868590041,7.60522112,2623.5,2622.2,0.799]
[1769868590241,10.57094523,2623.6,2622.2,0.799]
[1769868590468,3.880566,2623.5,2622.2,0.799]
[1769868590670,3.663247,2623.5,2622.2,0.799]
[1769868590970,0.1024,2623.8,2622.2,11.38905557]
[1769868591150,6.69054362,2623.8,2622.4,10.59005557]
[1769868591468,2.22597962,2623.8,2622.4,10.59005557]
[1769868591668,2.12357962,2623.8,2622.4,10.59005557]
[1769868592069,0.9537316,2624.1,2622.4,10.59005557]
[1769868592368,0.1024,2624.0,2622.4,10.59005557]
[1769868592568,0.001,2624.1,2622.4,10.59005557]
[1769868593472,0.001,2624.1,2622.4,11.54337776]
[1769868593645,0.001,2624.1,2622.4,10.59005557]
[1769868593844,0.001,2624.1,2622.6,10.59005557]
[1769868595046,0.001,2624.1,2622.6,10.59115557]
[1769868595247,0.001,2624.1,2622.7,0.2335703]
[1769868595446,0.001,2624.1,2622.8,10.59005557]
[1769868596249,0.001,2624.1,2622.8,11.54322582]
[1769868596584,0.001,2624.1,2622.9,10.59005557]
[1769868597872,0.001,2624.3,2623.5,10.59005557]
[1769868598075,11.03120032,2625.8,2623.7,10.59005557]
[1769868598076,11.52307228,2625.7,2623.7,10.59005557]
[1769868598383,0.1024,2625.6,2623.7,10.59005557]
[1769868598786,11.52307228,2625.7,2623.7,10.59005557]
[1769868598986,1.55300206,2625.6,2623.9,10.59005557]
[1769868599151,10.67334523,2625.4,2622.8,11.54320862]
[1769868599355,10.67334523,2625.2,2623.0,10.59005557]
[1769868599551,0.1024,2625.0,2623.2,10.59005557]
[1769868599892,1.05480794,2625.0,2623.2,10.59005557]
[1769868600256,0.1024,2625.0,2623.2,10.59005557]
[1769868600570,10.67334523,2625.4,2623.4,10.59005557]
[1769868600758,10.57094523,2625.3,2623.5,0.799]
[1769868600959,0.1024,2625.4,2623.6,10.59005557]
[1769868601256,10.67334523,2625.2,2623.7,0.799]
[1769868601474,0.1024,2625.0,2623.7,0.799]
[1769868601680,1.77650782,2625.0,2623.7,0.799]
[1769868601869,1.67410782,2625.0,2623.7,11.38905557]
[1769868602381,1.15065119,2625.8,2623.7,12.34189962]
[1769868602582,2.161655,2625.7,2623.7,11.38905557]
[1769868602757,0.1024,2625.7,2623.7,11.38905557]
[1769868603687,0.19854941,2625.8,2623.9,10.59005557]
[1769868603888,0.19854941,2625.8,2624.1,10.59005557]
[1769868604456,0.19854941,2625.8,2624.1,11.54275773]
[1769868604681,0.30065481,2626.2,2624.2,0.2335703]
[1769868604873,0.1024,2626.1,2624.3,10.59005557]
[1769868605277,0.30065481,2626.2,2624.5,10.59005557]
[1769868605489,0.30065481,2626.2,2624.7,10.59005557]
[1769868605684,0.30065481,2626.2,2624.9,10.59005557]
[1769868605893,0.001,2626.4,2625.1,10.59005557]
[1769868606688,0.001,2626.4,2625.2,10.59005557]
[1769868606880,0.001,2626.6,2625.2,10.50923728]
[1769868607087,0.19842939,2627.3,2625.3,1.08236259]
[1769868607393,0.001,2625.6,2625.4,11.07466698]
[1769868607591,0.1024,2627.1,2625.4,11.07466698]
[1769868607961,4.00461436,2627.4,2625.4,11.07466698]
[1769868607962,0.1984255,2627.4,2625.4,12.02689819]
[1769868608161,1.14994907,2627.4,2625.4,11.07466698]
[1769868608497,10.57642824,2627.2,2625.5,1.9064667]
[1769868608790,18.09130624,2627.1,2625.5,0.799]
[1769868609094,10.47402824,2627.1,2625.5,0.799]
[1769868609596,0.1024,2627.2,2625.5,11.07466698]
[1769868609890,0.49559931,2627.3,2625.5,11.07466698]
[1769868610202,0.49559931,2627.3,2625.7,10.27566698]
[1769868610401,0.1024,2627.8,2625.7,10.27566698]
[1769868610913,1.0537702,2627.8,2625.7,10.27566698]
[1769868611615,0.198394,2627.9,2626.1,10.27566698]
[1769868611905,0.1024,2628.2,2626.2,11.22761275]
[1769868612067,1.25516388,2628.2,2626.4,10.27566698]
[1769868612402,2.20638661,2628.2,2626.4,10.27566698]
[1769868612599,12.68041485,2628.2,2626.4,10.27566698]
[1769868612988,0.1024,2628.0,2626.5,0.799]
[1769868613195,10.47402824,2627.6,2626.0,10.27566698]
[1769868613419,23.60072206,2627.5,2626.1,0.799]
[1769868613721,10.47402824,2627.5,2626.1,0.799]
[1769868614118,1.05382499,2627.7,2626.1,11.07466698]
[1769868614301,1.05382499,2627.7,2626.1,12.18213368]
[1769868614821,10.57642824,2627.5,2626.1,0.799]
[1769868615028,0.95142499,2627.7,2626.1,0.799]
[1769868615029,10.57642824,2627.3,2626.1,0.799]
[1769868615320,20.90072724,2627.2,2626.1,0.799]
[1769868615524,10.47402824,2627.1,2626.1,0.799]
[1769868615723,1.04740282,2627.0,2626.1,0.799]
[1769868616724,1.05393455,2627.4,2626.1,0.799]
[1769868617030,0.1024,2627.2,2626.1,0.799]
[1769868617592,10.57642824,2627.2,2626.1,0.799]
[1769868618023,10.57642824,2627.2,2625.6,0.798]
[1769868618726,11.52803818,2627.2,2625.6,0.798]
[1769868618928,1.53342969,2627.1,2625.8,10.27566698]
[1769868619146,0.001,2626.9,2625.8,10.27566698]
[1769868622232,0.001,2626.9,2625.9,0.798]
[1769868622643,0.001,2626.9,2625.9,11.07366698]
[1769868624421,0.001,2626.9,2625.9,10.27566698]
[1769868624626,0.001,2626.9,2625.9,0.798]
[1769868627239,0.001,2626.9,2625.9,1.9053667]
[1769868628247,0.001,2626.9,2625.6,0.0011]
[1769868628437,10.47502824,2626.9,2625.7,0.798]